Cogmind - Beta 16.1 @@@ ROGUE MODE // 2026.03.11 @ 13:46:16 Player: lone_cultivator Result: Destroyed by G-47 Trooper with Particle Gun Performance ------------- Evolutions (0) 0 Regions Visited (1) 200 Robots Destroyed (23) 115 Value Destroyed (485) 485 Prototype IDs (2) 40 Alien Tech Used (0) 0 Bonus (0) 0 TOTAL SCORE: 840 Bonus ------- None Cogmind --------- Core Integrity 0/250 Matter 292/300 Energy 250/250 System Corruption 0% Temperature Cool (24) Movement Walking (260) Ox2 Location -10/Materials Parts ------- > --- POWER (1) -------- Ion Engine > --- PROPULSION (2) --- Aluminum Leg Aluminum Leg > --- UTILITY (2) ------ High-capacity Storage Unit Visual Processing Unit > --- WEAPON (2) ------- Light Assault Rifle Light Assault Rifle > --- INVENTORY (20) --- Ion Engine Light Ion Engine Aluminum Leg Aluminum Leg Aluminum Leg Heat Sink Small Storage Unit Medium Matter Pod (100) Sensor Array Signal Interpreter Small Laser Peak State ------------ > --- POWER ------------ Ion Engine > --- PROPULSION ------- Aluminum Leg Aluminum Leg > --- UTILITY ---------- High-capacity Storage Unit Visual Processing Unit > --- WEAPON ----------- Light Assault Rifle Light Assault Rifle > --- INVENTORY -------- Ion Engine Light Ion Engine Aluminum Leg Aluminum Leg Heat Sink Small Storage Unit Medium Matter Pod Sensor Array Signal Interpreter Small Laser [Rating: 9] Favorites ----------- Power Ion Engine Engine Ion Engine Propulsion Aluminum Leg Leg Aluminum Leg Utility Visual Processing Unit Device Heat Sink Storage High-capacity Storage Unit Processor Visual Processing Unit Weapon Light Assault Rifle Energy Gun Small Laser Ballistic Gun Light Assault Rifle Build | -11 -10 ------- Run | Yrd Mat Slots Evolved . | . . Power . | . . Propulsion . | . . Utility . | . . Weapon . | . . Parts Attached 22 | 6 16 Power 4 | 1 3 Engine 4 | 1 3 Core . | . . Reactor . | . . Propulsion 7 | 2 5 Treads . | . . Leg 7 | 2 5 Wheel . | . . Hover . | . . Flight . | . . Utility 4 | . 4 Device 1 | . 1 Storage 2 | . 2 Processor 1 | . 1 Hackware . | . . Protection . | . . Artifact . | . . Weapon 7 | 3 4 Energy Gun 3 | 1 2 Energy Cannon . | . . Ballistic Gun 4 | 2 2 Ballistic Cannon . | . . Launcher . | . . Special Weapon . | . . Impact Weapon . | . . Slashing Weapon . | . . Piercing Weapon . | . . Special Melee Weapon . | . . Unidentified Prototypes . | . . Parts Lost 5 | . 5 Power 1 | . 1 Propulsion 2 | . 2 Utility . | . . Weapon 2 | . 2 Highest Loss Streak 5 | . 5 To Critical Strikes . | . . Average Backups 6 | 2 6 Power 1 | . 1 Propulsion 1 | . 1 Utility 2 | . 2 Weapon 1 | 1 1 Tool/Special . | . . Unused Backups 7 | . 7 Power 2 | . 2 Propulsion 1 | . 1 Utility 4 | . 4 Weapon . | . . Tool/Special . | . . Average Slot Usage (%) 96 | . 96 Engine 13 | . 13 Leg 26 | . 26 Device 4 | . 4 Storage 7 | . 7 Processor 13 | . 13 Energy Gun 6 | . 6 Ballistic Gun 20 | . 20 Peak Build Rating 9 | 5 9 Average Rating 7 | 3 8 On Entrance 2 | . 5 Avg Prop Armor Cover (%) . | . . Naked Turns . | . . Heaviest Build 47 | 6 47 Greatest Support 20 | 20 20 Greatest Overweight (x) 2 | . 2 Average Overweight (x) . | . . Largest Inventory Capacity 20 | 5 20 Average Capacity 12 | 5 12 Most Carried 11 | 5 11 Average Carried 6 | 2 6 Final Capacity 20 | 5 20 Final Carried 11 | 4 11 Class Distribution -------------------- 72% | Scavenger-Mutant 27% | Mutant Dominant Class ---------------- Scavenger-Mutant | -10/Materials Resources | -11 -10 ----------- Run | Yrd Mat Matter Collected 795 | 284 511 Remotely . | . . Salvage Created 767 | 45 722 Parts 62 | 3 59 Haulers Intercepted 1 | . 1 Recyclers Shooed 4 | . 4 Parts Field Recycled . | . . Retrieved Matter . | . . Parts Self-Destructed . | . . Prevented . | . . Parts Restored . | . . Kills | -11 -10 ------- Run | Yrd Mat Combat Hostiles Destroyed 14 | 1 13 Guns 14 | 1 13 Classes Destroyed 8 | 1 7 Worker 2 | . 2 Builder 2 | . 2 Hauler 1 | . 1 Recycler 1 | . 1 Operator 1 | . 1 Watcher 2 | . 2 Swarmer 3 | . 3 Grunt 11 | 1 10 Best Kill Streak 6 | 1 6 Combat Bots Only 4 | 1 4 Max Kills in Single Turn 2 | 1 2 Gunslinging 1 | . 1 Exploded . | . . Melee . | . . Uniques/NPCs Destroyed . | . . Combat | -11 -10 -------- Run | Yrd Mat Hostile Shots Fired 125 | 6 119 Missed 22 | 1 21 Hits 103 | 5 98 Projectile 103 | 5 98 Critical Strikes 1 | . 1 Damage Taken 1210 | 55 1155 Core 265 | 11 254 Absorbed by Shields . | . . Regen/Repaired (Parts) 83 | . 83 Core Remaining (%) 95 | 95 . Volleys Fired 102 | 6 96 Largest 2 | 2 2 Hottest 60 | 40 60 Shots Fired 193 | 12 181 Gun 193 | 12 181 Cannon . | . . Launcher . | . . Special . | . . Kinetic 120 | 12 108 Thermal 73 | . 73 Explosive . | . . Electromagnetic . | . . Robot Hit Streak 8 | 2 8 Robot Miss Streak 4 | 4 3 Penetration Max . | . . Secondary Targets 1 | . 1 Max Gunslinging Chain 1 | . 1 Shots Hit Robots 108 | 4 104 Core Hits 41 | 2 39 Critical Kills . | . . Critical Parts Destroyed 1 | . 1 Critical Strikes 1 | . 1 Destroy 1 | . 1 Melee Attacks . | . . Impact . | . . Slashing . | . . Piercing . | . . Sneak Attacks . | . . Combat Hostiles . | . . Follow-up Attacks . | . . Damage Inflicted 1243 | 38 1205 Guns 1243 | 38 1205 Cannons . | . . Explosions . | . . Melee . | . . Ramming . | . . Kinetic 764 | 38 726 Thermal 479 | . 479 Explosive . | . . Electromagnetic . | . . Impact . | . . Slashing . | . . Piercing . | . . Highest Corruption . | . . Average Corruption . | . . Corruption Purged . | . . Corruption Blocked . | . . Overload Shots . | . . Overflow Damage . | . . Projectiles . | . . Explosions . | . . Melee . | . . Knockbacks . | . . Impact . | . . Kinetic . | . . Secondary . | . . Self-Inflicted Damage . | . . Shots . | . . Rammed . | . . Targets Rammed . | . . Kicked . | . . Crushed . | . . Highest Temperature 64 | 6 64 Average Temperature 21 | 6 23 Received Heat Transfer 642 | 30 612 Siege Activations . | . . Martial Activations . | . . Shielding Activations . | . . Robots Disrupted . | . . Combat Hostiles . | . . Robots Corrupted . | . . Combat Hostiles . | . . Parts Fried . | . . Impact Corruptions . | . . Robots Melted . | . . Combat Hostiles . | . . Parts Melted . | . . Heat Transferred 1100 | . 1100 Parts Sabotaged . | . . Parts Stolen . | . . Parts Stripped . | . . Power Chain Reactions . | . . Alert | -11 -10 ------- Run | Yrd Mat Maximum Alert Level . | . . Low Security (%) 100 | 100 100 Level 1 . | . . Level 2 . | . . Level 3 . | . . Level 4 . | . . Level 5 . | . . High Security . | . . Max Security . | . . Peak Influence 122 | 20 122 Initial . | . . Average 26 | 2 29 Influence Increases 403 | 20 383 Destroy 0b10 Robot/C 280 | 20 260 Destroy 0b10 Robot/NC 45 | . 45 Destroy Leader 66 | . 66 Successful Hack 12 | . 12 Influence Decreases 403 | 20 383 Time Decay 383 | 20 363 Lost Part 20 | . 20 Squads Dispatched 5 | . 5 Investigation 4 | . 4 Extermination . | . . Reinforcement 1 | . 1 Assault . | . . Garrison . | . . Intercept . | . . Searches Triggered . | . . Construction Impeded . | . . Haulers Reinforced . | . . Active Scanning Responses . | . . Cargo Convoy Interrupts . | . . Stealth | -11 -10 --------- Run | Yrd Mat Distress Signals . | . . Communications Jammed . | . . Distress Signals . | . . Times Spotted 22 | 1 21 Peak Tracking Total 3 | 1 3 Tactical Retreats . | . . Traps | -11 -10 ------- Run | Yrd Mat Traps Triggered 1 | . 1 Indirectly . | . . Trap Hack Attempts . | . . Triggered . | . . Disarmed . | . . Reprogrammed . | . . Reused . | . . Traps Extracted . | . . Installed . | . . Triggered . | . . Machines | -11 -10 ---------- Run | Yrd Mat Machines Disabled . | . . Max in Single Turn . | . . Machines Repaired . | . . Machines Dismantled . | . . Machines Sabotaged . | . . Overloaded Fab Kills . | . . Hacking | -11 -10 --------- Run | Yrd Mat Machines Accessed 6 | . 6 Terminals 5 | . 5 Fabricators . | . . Repair Stations 1 | . 1 Recycling Units . | . . Scanalyzers . | . . Garrison Access . | . . Total Hacks 21 | . 21 Successful 11 | . 11 Failed 10 | . 10 Catastrophic . | . . Database Lockouts . | . . Manual . | . . Terminals 18 | . 18 Fabricators . | . . Repair Stations 3 | . 3 Recycling Units . | . . Scanalyzers . | . . Garrison Access . | . . Terminal Hacks 9 | . 9 Record 2 | . 2 Prototype ID Bank 1 | . 1 Alert Level 3 | . 3 Transport Status 1 | . 1 Hauler Manifests 1 | . 1 Registered Components 1 | . 1 Fabricator Hacks . | . . Repair Station Hacks 2 | . 2 Scan Component 1 | . 1 Repair 1 | . 1 Recycling Unit Hacks . | . . Scanalyzer . | . . Garrison Access Hacks . | . . Unauthorized Hacks . | . . Terminals . | . . Fabricators . | . . Repair Stations . | . . Recycling Units . | . . Scanalyzers . | . . Garrison Access . | . . Data Cores Recovered . | . . Used . | . . Hacking Detections 5 | . 5 Full Trace Events 3 | . 3 Feedback Events . | . . Feedback Blocked . | . . Robot Schematics Acquired . | . . Robots Built . | . . Authchips . | . . Time . | . . Total Robot Build Rating . | . . Part Schematics Acquired . | . . Parts Built . | . . Authchips . | . . Time . | . . Total Part Build Rating . | . . Part Studies Acquired . | . . Parts Repaired 1 | . 1 Time 26 | . 26 Parts Recycled . | . . Recycled Matter . | . . Retrieved Matter . | . . Retrieved Components . | . . Parts Scanalyzed . | . . Part Schematics Acquired . | . . Parts Damaged . | . . Bothacking | -11 -10 ------------ Run | Yrd Mat Used RIF Installer . | . . Robots Hacked . | . . Non-combat . | . . Combat . | . . Robot Hacks Applied . | . . Relay Couplers Released . | . . Fabnet Peak Effective % . | . . Robots Rewired . | . . Allies Hacked . | . . Hacks Repelled . | . . Allies | -11 -10 -------- Run | Yrd Mat Total Allies . | . . Largest Group . | . . Highest-Rated Group . | . . Highest-Rated Ally . | . . Total Orders . | . . Ally Attacks . | . . Total Damage . | . . Kills . | . . Allies Corrupted . | . . Allies Melted . | . . Intel | -11 -10 ------- Run | Yrd Mat Active Infowar (turns) 1188 | . 1188 Optics 1188 | . 1188 Robot Analysis Total . | . . Derelict Logs Recovered . | . . Drone Launches . | . . Drone Recoveries . | . . Exploration | -11 -10 ------------- Run | Yrd Mat Turns Passed 1360 | 121 1239 Spaces Moved 537 | 77 460 Core 43 | 43 . Treads . | . . Legs 494 | 34 460 Wheels . | . . Hover . | . . Flight . | . . Fastest Speed 50 | 50 120 Average Speed 171 | 80 186 Slowest Speed 260 | 120 260 Overloaded Moves . | . . Propulsion Burnouts . | . . Robots Hopped . | . . Potential Cave-ins . | . . Cave-ins Triggered . | . . Exploration Rate (%) 35 | 6 64 Regions Visited 1 Branch Regions . Pre-discovered Areas . | . . Known Exits Taken . | . . Unknown Exits Taken 1 | 1 . Scrap Searched . | . . Spaces Dug . | . . Terrain Destroyed . | . . Melee . | . . Projectile . | . . AOE . | . . Terrain Rammed . | . . Walls Destroyed . | . . Machines Disabled . | . . Actions | -11 -10 --------- Run | Yrd Mat Total 787 | 124 663 Wait 88 | 28 60 Move 536 | 76 460 Hop . | . . Pick Up 29 | 8 21 Fast Attach 1 | 1 . Attach 11 | 4 7 Detach . | . . Swap 13 | 1 12 Drop 7 | . 7 Fire 102 | 6 96 Melee . | . . Ram . | . . Kick . | . . Crush . | . . Escape Stasis . | . . Rewire . | . . Trap . | . . Miscellaneous . | . . Route ------- -11/Scrapyard -10/Materials (discovered 3 exits: [*Mat x2] / [*Min]) History --------- Turn | Location | Event 2 | -11/Scrapyard | Met Revision 17 58 | -11/Scrapyard | Discovered new exit (range 8) 122 | -11/Scrapyard | Entered Materials 308 | -10/Materials | Build established: Mutant 407 | -10/Materials | Lost 5 parts (1p2n2w) 435 | -10/Materials | Repaired Assault Rifle 455 | -10/Materials | Core integrity fell below 50% 567 | -10/Materials | Discovered new exit (range 11) 696 | -10/Materials | Build established: Scavenger-Mutant 734 | -10/Materials | Core integrity fell below 20% 789 | -10/Materials | Discovered new exit (range 18) 917 | -10/Materials | Discovered new exit (range 7) 1361 | -10/Materials | Destroyed by G-47 Trooper with Particle Gun Last Messages --------------- 01218_ Acquired Ion Engine. 01221_ Dropped Ion Engine. 01221_ Acquired 10 matter. 01226_ Acquired Aluminum Leg. 01234_ R-06 Scavenger collects Heat Sink. 01328_ Connecting with Terminal... >>Query(Terminal) Interactive station connected to the central network via reliable hard line. Relevant information is monitored and relayed by the terminal's Operator. Types of information accessible directly from each terminal are limited in order to mitigate the negative impacts of unauthorized access. Access is restricted by shielding the system behind multi-layered security, the first layer of which requires a dynamic key to clear without triggering defense mechanisms. 01328_ ALERT: Suspicious activity at Terminal M007. Dispatching Investigation squad. Map ----- +----------------------------------------------------+ | | | | | | | | | | | | | | | | | | | | | | | | | | | | | | | | | | | | | | | ?????????????????????????????????????????????????? | | ?????????????????????????????????????????????????? | | ?????????????????????????????????????????????????? | | ????????????????###???????######?????????????????? | | ????#############T######## [#?????????????????? | | ????# #?????????????????? | | ????# @ [ +?????????????????? | | ????# #?????????????????? | | ????###########+########## #?????????????????? | | ????????# #???# ##?????????????????? | | ????????# """ """ """ #???? #??????????????????? | | ????????# """ """ """ #???? g #??????????????????? | | ????????# """ """ """ #???? g#??????????????????? | | ????????# ##### # #????????????????? | | ????????# + + #????????????????? | | ####################### # #????????????????? | | # ######### ### ## ?????????????????? | | # # !!! % #?????##????????????????? | | # + !! #?? ????????????????? | | # # !! # ?????????????????? | | # ### + " ???????????????????? | | # #?# # ""?????????????????=??? | | #########+#####?# """ # """??????????????????? | | ######### ####### """ #?####??????????????????? | | # *% """ ?????????????????? | | # % ?????????????????? | | "" """ # ?????????????????? | | "" """ + #####################??########???????? | | "" """ # ## #???????# #???????? | | # ## T #???????# """ #???????? | | ##+##### ## """"" #???????# """ !#???????? | +----------------------------------------------------+ Best States ------------- Heat Dissipation 35 Energy Generation 10 Energy Capacity 250 Matter Stores 300 Matter Capacity 300 Sight Range 18 Terrain Scan Density 10 Evasion (%) 55 Item Schematics ----------------- None Robot Schematics ------------------ None Fabricated ------------ Nothing Repaired ---------- Assault Rifle | 17% | -10/Materials Studied --------- None Alien Tech Used ----------------- None Achievements -------------- Spot Them First Challenges ------------ None Game ------ Seed PartitionHeatManipulator Manual? 0 Play Time 00:20:57 Cumulative 7.3 hours Start 2026.03.11 @ 13:27:53 End 2026.03.11 @ 13:46:16 Sessions 1 Manual Loads 0 Difficulty Rogue Special Mode None Game No. 3 Rogue 3 Adventurer 0 Explorer 0 Win Type - Total 0 Types 0/0/0/0/0/0/0/0/0/0 Lore% 3 Gallery% 6 Achievement% 9 Wizard Run 0 Options --------- Layout 1 ASCII 0 Keyboard 0 Movement Mouse Keybinds 0 Fullscreen 2 Font 48/Smallcaps Map View 50x35 Zoom Use 0% Tactical HUD 1 Map Filters NONE Filters NONE Steam 1 RUN: 0e84f151-5a03-406e-80b2-d41c83a811fa